[Event "Hunan Belt and Road Open 2019"]
[Site "Hunan"]
[Date "2019.08.03"]
[Round "6.1"]
[White "Cheparinov, Ivan"]
[Black "Wang, Hao"]
[Result "1-0"]
[ECO "D35"]
[WhiteElo "2666"]
[BlackElo "2725"]
[Annotator "RC"]
[PlyCount "77"]
[EventDate "2019.07.29"]
[EventType "swiss"]
[EventCountry "CHN"]
[SourceTitle "playchess.com"]
[Source "ChessBase"]
[SourceQuality "1"]
[TimeControl "5400+30"]

1. d4 {[%emt 0:00:00]} Nf6 {[%emt 0:00:48]} 2. c4 {[%emt 0:00:00]} e6 {[%emt 0:00:06]} 3. Nc3 {[%emt 0:00:00]} d5 {[%emt 0:01:39]} 4. cxd5 {[%emt 0:00:00]} exd5 {[%emt 0:00:07]} 5. Bg5 {[%emt 0:00:09]} c6 {[%emt 0:00:09]} 6. e3 {[%emt 0:00:05]} Be7 {[%emt 0:00:04]} 7. Bd3 {[%emt 0:01:09]} Nbd7 {[%emt 0:00:27]} 8. Nge2 {[%emt 0:01:40]} Nf8 {[%emt 0:01:35]} 9. O-O {[%emt 0:04:06]} Ne6 {[%emt 0:00:25]} 10. Bh4 {[%emt 0:00:07]} O-O {[%emt 0:00:47]} 11. f3 {[%emt 0:07:10]} b6 {[%emt 0:02:57]} 12. Kh1 {[%emt 0:08:13]} g6 {[%emt 0:03:49]} 13. Bf2 {[%emt 0:00:15]} c5 {[%emt 0:14:01]} 14. Qd2 {[%emt 0:00:47]} Bb7 {[%emt 0:05:04]} 15. Rad1 {[%emt 0:00:46]} a6 {[%emt 0:10:33]} 16. Bc2 {[%emt 0:04:48]} Re8 {[%emt 0:06:37]} 17. Rfe1 {[%emt 0:12:08]} Rc8 {[%emt 0:13:24]} 18. dxc5 {[%emt 0:02:39]} bxc5 {[%emt 0:00:37]} 19. Ba4 {[%emt 0:01:29]} Rf8 {[%emt 0:01:36]} 20. Bb3 {[%emt 0:04:12]} Qb6 {[%emt 0:11:44]} 21. Nf4 {[%emt 0:03:48]} Nc7 {[%emt 0:00:09]} 22. e4 {[%emt 0:07:55]} dxe4 {[%emt 0:01:57]} 23. fxe4 {[%emt 0:01:05]} Rcd8 {[%emt 0:03:05]} 24. Nfd5 {[%emt 0:06:03]} Ncxd5 {[%emt 0:02:17]} 25. exd5 {[%emt 0:11:50]} Qc7 26. Bg3 {[%emt 0:11:53]} Bd6 {[%emt 0:01:03]} 27. Bh4 {[%emt 0:05:44]} Bf4 {[%emt 0:06:49]} 28. Re7 {[%emt 0:00:00]} Qd6 {[%emt 0:05:49]} 29. Qe1 {[%emt 0:00:13]} Bc8 {[%emt 0:01:15]} 30. Re6 {[%emt 0:01:58]} Bxe6 {[%emt 0:01:45]} 31. dxe6 {[%emt 0:00:02]} Qe5 {[%emt 0:00:07]} 32. e7 {[%emt 0:00:31]} Rxd1 {[%emt 0:00:13]} 33. exf8=Q+ {[%emt 0:00:10]} Kxf8 {[%emt 0:00:31]} 34. Qxd1 {[%emt 0:00:53]} g5 {[%emt 0:00:05]} 35. Bf2 {[%emt 0:00:21]} Bxh2 {[%emt 0:00:04]} 36. Qe2 {[%emt 0:00:54]} Qc7 {[%emt 0:00:27]} 37. Ne4 {[%emt 0:00:55]} Nxe4 {[%emt 0:02:33]} 38. Qxe4 {[%emt 0:00:01]} Kg7 {[%emt 0:00:07]} 39. Qf5 {[%emt 0:00:46]} 1-0

[Event "Hunan Belt and Road Open 2019"]
[Site "Hunan"]
[Date "2019.08.03"]
[Round "6.13"]
[White "Deac, Bogdan-Daniel"]
[Black "Yu, Ruiyuan"]
[Result "1/2-1/2"]
[ECO "D16"]
[WhiteElo "2621"]
[BlackElo "2464"]
[Annotator "ChessBase"]
[PlyCount "65"]
[EventDate "2019.07.29"]
[EventType "swiss"]
[EventCountry "CHN"]
[SourceTitle "playchess.com"]
[Source "ChessBase"]
[SourceQuality "1"]
[TimeControl "5400+30"]

1. d4 {[%emt 0:49:42]} d5 {[%emt 0:00:09]} 2. c4 {[%emt 0:00:04]} c6 {[%emt 0:00:06]} 3. Nf3 {[%emt 0:00:04]} Nf6 {[%emt 0:00:06]} 4. Nc3 {[%emt 0:00:00]} dxc4 {[%emt 0:04:33]} 5. a4 {[%emt 0:00:00]} e6 {[%emt 0:00:05]} 6. e3 {[%emt 0:00:00]} c5 {[%emt 0:00:11]} 7. Bxc4 {[%emt 0:00:00]} Nc6 {[%emt 0:00:22]} 8. O-O {[%emt 0:00:00]} cxd4 {[%emt 0:00:44]} 9. exd4 {[%emt 0:00:00]} Be7 {[%emt 0:00:08]} 10. Qe2 {[%emt 0:00:00]} O-O {[%emt 0:00:46]} 11. Rd1 {[%emt 0:00:00]} Nb4 {[%emt 0:00:34]} 12. Bg5 {[%emt 0:00:00]} Bd7 {[%emt 0:11:33]} 13. Ne5 {[%emt 0:00:00]} Bc6 {[%emt 0:02:21]} 14. a5 {[%emt 0:00:00]} Bd5 {[%emt 0:14:49]} 15. Bxf6 {[%emt 0:00:00]} Bxf6 {[%emt 0:15:44]} 16. Nxd5 {[%emt 0:00:00]} Nxd5 {[%emt 0:00:20]} 17. a6 {[%emt 0:00:00]} b6 {[%emt 0:02:32]} 18. Qf3 {[%emt 0:00:00]} Rc8 {[%emt 0:02:50]} 19. Bxd5 {[%emt 0:00:00]} Qxd5 {[%emt 0:03:59]} 20. Qxd5 {[%emt 0:00:00]} exd5 {[%emt 0:00:03]} 21. Rac1 {[%emt 0:00:00]} Bg5 {[%emt 0:01:36]} 22. Rb1 {[%emt 0:00:00]} Rc2 {[%emt 0:07:09]} 23. b4 {[%emt 0:00:00]} f6 {[%emt 0:00:54]} 24. Nd3 {[%emt 0:00:00]} b5 {[%emt 0:08:03]} 25. Re1 {[%emt 0:00:00]} Kf7 {[%emt 0:01:14]} 26. g3 {[%emt 0:00:00]} Bh6 {[%emt 0:04:41]} 27. f4 {[%emt 0:00:00]} g5 {[%emt 0:00:45]} 28. f5 {[%emt 0:00:00]} g4 {[%emt 0:00:01]} 29. Nc5 {[%emt 0:00:00]} Bd2 {[%emt 0:02:18]} 30. Re2 {[%emt 0:00:00]} Re8 {[%emt 0:00:11]} 31. Ne6 {[%emt 0:00:00]} Rec8 {[%emt 0:00:08]} 32. Nc5 {[%emt 0:00:00]} Re8 {[%emt 0:00:02]} 33. Ne6 {[%emt 0:00:00]} 1/2-1/2

[Event "Hunan Belt and Road Open 2019"]
[Site "Hunan"]
[Date "2019.08.03"]
[Round "6.15"]
[White "Batchuluun, Tsegmed"]
[Black "Xu, Xiangyu"]
[Result "1/2-1/2"]
[ECO "D84"]
[WhiteElo "2535"]
[BlackElo "2585"]
[Annotator "ChessBase"]
[PlyCount "71"]
[EventDate "2019.07.29"]
[EventType "swiss"]
[EventCountry "CHN"]
[SourceTitle "playchess.com"]
[Source "ChessBase"]
[SourceQuality "1"]
[TimeControl "5400+30"]

1. d4 {[%emt 0:00:00]} Nf6 {[%emt 0:00:00]} 2. c4 {[%emt 0:00:00]} g6 {[%emt 0:00:00]} 3. Nc3 {[%emt 0:00:00]} d5 {[%emt 0:00:00]} 4. Bf4 {[%emt 0:00:38]} Bg7 {[%emt 0:00:00]} 5. e3 {[%emt 0:00:10]} O-O {[%emt 0:00:00]} 6. cxd5 {[%emt 0:00:53]} Nxd5 {[%emt 0:00:00]} 7. Nxd5 {[%emt 0:00:06]} Qxd5 {[%emt 0:00:01]} 8. Bxc7 {[%emt 0:00:08]} Na6 {[%emt 0:00:04]} 9. Bxa6 {[%emt 0:00:23]} Qxg2 {[%emt 0:00:06]} 10. Qf3 {[%emt 0:00:35]} Qxf3 {[%emt 0:00:06]} 11. Nxf3 {[%emt 0:00:06]} bxa6 {[%emt 0:00:03]} 12. Rc1 {[%emt 0:00:15]} a5 {[%emt 0:00:03]} 13. Ne5 {[%emt 0:04:54]} a4 {[%emt 0:00:07]} 14. Nc6 {[%emt 0:04:45]} Re8 {[%emt 0:01:18]} 15. Rc5 {[%emt 0:05:12]} Bf8 {[%emt 0:05:19]} 16. Kd2 {[%emt 0:06:17]} e6 {[%emt 0:07:30]} 17. Rc3 {[%emt 0:03:09]} f6 {[%emt 0:01:20]} 18. Rhc1 {[%emt 0:00:24]} Bd7 {[%emt 0:00:58]} 19. a3 {[%emt 0:00:31]} Kf7 {[%emt 0:04:17]} 20. Na5 {[%emt 0:11:12]} Rec8 {[%emt 0:00:28]} 21. Nb7 {[%emt 0:00:43]} Ke8 {[%emt 0:12:54]} 22. Bd6 {[%emt 0:04:59]} Rxc3 {[%emt 0:00:33]} 23. Rxc3 {[%emt 0:02:03]} Bc8 {[%emt 0:00:11]} 24. Bxf8 {[%emt 0:01:14]} Bxb7 {[%emt 0:00:06]} 25. Rc7 {[%emt 0:00:15]} Bd5 {[%emt 0:00:06]} 26. Bd6 {[%emt 0:03:41]} Rb8 {[%emt 0:00:41]} 27. Bb4 {[%emt 0:18:49]} Rb7 {[%emt 0:00:39]} 28. Rc5 {[%emt 0:00:53]} Kf7 {[%emt 0:13:50]} 29. Kc3 {[%emt 0:00:54]} g5 {[%emt 0:05:55]} 30. Ra5 {[%emt 0:00:07]} Bb3 {[%emt 0:00:16]} 31. e4 {[%emt 0:04:34]} Rc7+ {[%emt 0:10:31]} 32. Kd3 {[%emt 0:08:26]} a6 {[%emt 0:05:56]} 33. Ke3 {[%emt 0:02:18]} Bc4 {[%emt 0:00:30]} 34. Rc5 {[%emt 0:13:48]} Rxc5 {[%emt 0:00:07]} 35. dxc5 {[%emt 0:00:03]} Bb5 {[%emt 0:00:11]} 36. f4 {[%emt 0:00:09]} 1/2-1/2

[Event "Hunan Belt and Road Open 2019"]
[Site "Hunan"]
[Date "2019.08.03"]
[Round "6.20"]
[White "Wen, Yang"]
[Black "Xiang, Zeyu"]
[Result "1-0"]
[ECO "C54"]
[WhiteElo "2586"]
[BlackElo "2447"]
[Annotator "ChessBase"]
[PlyCount "111"]
[EventDate "2019.07.29"]
[EventType "swiss"]
[EventCountry "CHN"]
[SourceTitle "playchess.com"]
[Source "ChessBase"]
[SourceQuality "1"]
[TimeControl "5400+30"]

1. e4 {[%emt 0:00:00]} e5 {[%emt 0:00:00]} 2. Nf3 {[%emt 0:00:00]} Nc6 {[%emt 0:00:00]} 3. Bc4 {[%emt 0:00:00]} Bc5 {[%emt 0:00:00]} 4. c3 {[%emt 0:00:39]} Nf6 {[%emt 0:00:00]} 5. d4 {[%emt 0:00:51]} exd4 {[%emt 0:00:04]} 6. e5 {[%emt 0:00:03]} d5 {[%emt 0:00:05]} 7. Bb5 {[%emt 0:00:04]} Ne4 {[%emt 0:00:05]} 8. cxd4 {[%emt 0:00:05]} Bb6 {[%emt 0:00:04]} 9. Nc3 {[%emt 0:00:06]} O-O {[%emt 0:00:06]} 10. Be3 {[%emt 0:00:04]} Bg4 {[%emt 0:01:12]} 11. h3 {[%emt 0:00:26]} Bh5 {[%emt 0:00:09]} 12. Qc2 {[%emt 0:00:17]} Bg6 {[%emt 0:00:08]} 13. Qb3 {[%emt 0:00:05]} Ne7 {[%emt 0:00:06]} 14. O-O {[%emt 0:00:45]} c6 {[%emt 0:00:06]} 15. Bd3 {[%emt 0:00:05]} Nxc3 {[%emt 0:00:07]} 16. Qxc3 {[%emt 0:00:06]} f6 {[%emt 0:00:04]} 17. exf6 {[%emt 0:00:30]} Rxf6 {[%emt 0:00:05]} 18. Bg5 {[%emt 0:00:07]} Rxf3 {[%emt 0:00:04]} 19. gxf3 {[%emt 0:00:05]} Qd7 {[%emt 0:00:04]} 20. Bxe7 {[%emt 0:00:13]} Qxe7 {[%emt 0:00:05]} 21. Bxg6 {[%emt 0:00:05]} Qg5+ {[%emt 0:00:06]} 22. Kh1 {[%emt 0:00:05]} Qxg6 {[%emt 0:00:04]} 23. Rad1 {[%emt 0:00:06]} Qf5 {[%emt 0:00:57]} 24. f4 {[%emt 0:01:05]} Qxf4 {[%emt 0:00:07]} 25. Qe3 {[%emt 0:01:42]} Rf8 {[%emt 0:00:30]} 26. Kg2 {[%emt 0:01:12]} Qf6 {[%emt 0:22:18]} 27. Rfe1 {[%emt 0:01:32]} Qg6+ {[%emt 0:00:45]} 28. Kf1 {[%emt 0:05:51]} Qh5 {[%emt 0:01:00]} 29. Qe6+ {[%emt 0:08:37]} Kh8 {[%emt 0:02:54]} 30. Rd3 {[%emt 0:01:21]} h6 {[%emt 0:01:40]} 31. Re5 {[%emt 0:03:11]} Qh4 {[%emt 0:02:48]} 32. Rf5 {[%emt 0:00:21]} Rxf5 {[%emt 0:00:51]} 33. Qc8+ {[%emt 0:00:12]} Qd8 {[%emt 0:15:07]} 34. Qxf5 {[%emt 0:00:13]} Kg8 {[%emt 0:00:11]} 35. Qe6+ {[%emt 0:13:39]} Kh7 {[%emt 0:00:35]} 36. Qf7 {[%emt 0:00:07]} Qg5 {[%emt 0:03:43]} 37. f4 {[%emt 0:02:10]} Qg6 {[%emt 0:03:45]} 38. Qxg6+ {[%emt 0:00:09]} Kxg6 {[%emt 0:00:04]} 39. Kg2 {[%emt 0:00:06]} Kf5 {[%emt 0:00:10]} 40. Kf3 {[%emt 0:00:06]} g6 {[%emt 0:01:21]} 41. Rb3 {[%emt 0:01:33]} h5 {[%emt 0:06:55]} 42. a4 {[%emt 0:00:22]} Ke6 {[%emt 0:10:13]} 43. Ke3 {[%emt 0:04:41]} c5 {[%emt 0:05:21]} 44. Rb5 {[%emt 0:00:13]} c4 {[%emt 0:01:10]} 45. a5 {[%emt 0:01:04]} Bc7 {[%emt 0:00:10]} 46. Rxb7 {[%emt 0:00:06]} Bxa5 {[%emt 0:00:04]} 47. Rxa7 {[%emt 0:00:04]} Bb4 {[%emt 0:00:04]} 48. Rb7 {[%emt 0:09:24]} Bf8 {[%emt 0:01:31]} 49. b3 {[%emt 0:00:45]} cxb3 {[%emt 0:00:06]} 50. Rxb3 {[%emt 0:00:03]} Be7 {[%emt 0:00:12]} 51. Rb7 {[%emt 0:03:26]} Ba3 {[%emt 0:01:20]} 52. Kf3 {[%emt 0:01:44]} Kf5 {[%emt 0:00:37]} 53. Rb5 {[%emt 0:04:07]} Ke6 {[%emt 0:01:58]} 54. Rb3 {[%emt 0:00:05]} Bf8 {[%emt 0:00:12]} 55. Re3+ {[%emt 0:00:11]} Kd6 {[%emt 0:04:00]} 56. Re8 {[%emt 0:01:05]} 1-0

[Event "Hunan Belt and Road Open 2019"]
[Site "Hunan"]
[Date "2019.08.03"]
[Round "6.21"]
[White "Lagno, Kateryna"]
[Black "Zhao, Yuanhe"]
[Result "1-0"]
[ECO "C42"]
[WhiteElo "2549"]
[BlackElo "2448"]
[Annotator "ChessBase"]
[PlyCount "103"]
[EventDate "2019.07.29"]
[EventType "swiss"]
[EventCountry "CHN"]
[SourceTitle "playchess.com"]
[Source "ChessBase"]
[SourceQuality "1"]
[TimeControl "5400+30"]

1. e4 {[%emt 0:00:00]} e5 {[%emt 0:02:52]} 2. Nf3 {[%emt 0:00:00]} Nf6 {[%emt 0:00:06]} 3. Nxe5 {[%emt 0:00:00]} d6 {[%emt 0:00:04]} 4. Nf3 {[%emt 0:00:00]} Nxe4 {[%emt 0:00:05]} 5. d4 {[%emt 0:00:00]} d5 {[%emt 0:00:05]} 6. Bd3 {[%emt 0:00:03]} Bd6 {[%emt 0:00:44]} 7. O-O {[%emt 0:00:13]} O-O {[%emt 0:00:16]} 8. c4 {[%emt 0:00:12]} c6 {[%emt 0:00:28]} 9. Qb3 {[%emt 0:00:16]} dxc4 {[%emt 0:08:04]} 10. Bxc4 {[%emt 0:00:10]} Qb6 {[%emt 0:11:18]} 11. Qd3 {[%emt 0:12:46]} Nf6 {[%emt 0:05:36]} 12. Nc3 {[%emt 0:10:23]} Na6 {[%emt 0:15:06]} 13. Ne4 {[%emt 0:06:24]} Nxe4 {[%emt 0:05:35]} 14. Qxe4 {[%emt 0:00:04]} Qa5 {[%emt 0:03:02]} 15. Ne5 {[%emt 0:04:19]} Bxe5 {[%emt 0:03:29]} 16. dxe5 {[%emt 0:00:19]} Nc5 {[%emt 0:02:42]} 17. Qh4 {[%emt 0:11:08]} Be6 {[%emt 0:01:17]} 18. Be2 {[%emt 0:00:29]} Qa4 {[%emt 0:11:15]} 19. b4 {[%emt 0:12:27]} Nd7 {[%emt 0:10:45]} 20. Bd3 {[%emt 0:03:44]} g6 {[%emt 0:02:53]} 21. Bh6 {[%emt 0:02:51]} a5 {[%emt 0:00:07]} 22. a3 {[%emt 0:06:57]} axb4 {[%emt 0:02:55]} 23. Bxf8 {[%emt 0:00:40]} Rxf8 {[%emt 0:00:12]} 24. axb4 {[%emt 0:00:14]} Qb3 {[%emt 0:00:05]} 25. Qd4 {[%emt 0:01:45]} Nxe5 {[%emt 0:01:42]} 26. Be4 {[%emt 0:04:31]} Nd7 {[%emt 0:00:15]} 27. Ra7 {[%emt 0:00:29]} Rb8 {[%emt 0:02:23]} 28. Rb1 {[%emt 0:00:25]} Qc4 {[%emt 0:00:04]} 29. Qxc4 {[%emt 0:00:15]} Bxc4 {[%emt 0:00:04]} 30. Bxc6 {[%emt 0:00:18]} bxc6 {[%emt 0:00:07]} 31. Rxd7 {[%emt 0:00:04]} c5 {[%emt 0:00:13]} 32. b5 {[%emt 0:06:43]} Rxb5 {[%emt 0:00:57]} 33. Rxb5 {[%emt 0:00:07]} Bxb5 {[%emt 0:00:03]} 34. Rd5 {[%emt 0:00:05]} h5 {[%emt 0:00:33]} 35. Rxc5 {[%emt 0:00:09]} Bd7 {[%emt 0:00:03]} 36. f3 {[%emt 0:00:34]} Kg7 {[%emt 0:00:12]} 37. Kf2 {[%emt 0:00:03]} Kf6 {[%emt 0:01:00]} 38. Ke3 {[%emt 0:00:05]} Bf5 {[%emt 0:00:52]} 39. Kd4 {[%emt 0:00:35]} Bb1 {[%emt 0:00:11]} 40. Rb5 {[%emt 0:01:11]} Bf5 {[%emt 0:00:12]} 41. Rb6+ {[%emt 0:00:20]} Kg7 {[%emt 0:00:06]} 42. Ke5 {[%emt 0:00:05]} Bd3 {[%emt 0:00:12]} 43. Kd6 {[%emt 0:02:13]} Bf1 {[%emt 0:00:38]} 44. g3 {[%emt 0:02:12]} Be2 {[%emt 0:00:45]} 45. f4 {[%emt 0:01:09]} Kf6 {[%emt 0:04:59]} 46. Kd7+ {[%emt 0:00:33]} Kg7 {[%emt 0:05:08]} 47. Ke7 {[%emt 0:00:05]} Bc4 {[%emt 0:00:52]} 48. Rf6 {[%emt 0:00:06]} Ba2 {[%emt 0:01:41]} 49. h4 {[%emt 0:00:43]} Bb3 {[%emt 0:01:42]} 50. f5 {[%emt 0:00:08]} gxf5 {[%emt 0:00:26]} 51. Rxf5 {[%emt 0:00:04]} Kg6 {[%emt 0:00:12]} 52. Rg5+ {[%emt 0:00:10]} 1-0

[Event "Hunan Belt and Road Open 2019"]
[Site "Hunan"]
[Date "2019.08.03"]
[Round "6.26"]
[White "Lei, Tingjie"]
[Black "Gusain, Himal"]
[Result "1/2-1/2"]
[ECO "C70"]
[WhiteElo "2505"]
[BlackElo "2407"]
[Annotator "RC"]
[PlyCount "123"]
[EventDate "2019.07.29"]
[EventType "swiss"]
[EventCountry "CHN"]
[SourceTitle "playchess.com"]
[Source "ChessBase"]
[SourceQuality "1"]
[TimeControl "5400+30"]

1. e4 {[%emt 0:00:00]} e5 {[%emt 0:09:38]} 2. Nf3 {[%emt 0:00:00]} Nc6 {[%emt 0:00:08]} 3. Bb5 {[%emt 0:00:00]} a6 {[%emt 0:00:39]} 4. Ba4 {[%emt 0:00:00]} b5 {[%emt 0:01:28]} 5. Bb3 {[%emt 0:00:07]} Na5 {[%emt 0:00:18]} 6. O-O {[%emt 0:05:02]} d6 {[%emt 0:00:31]} 7. d4 {[%emt 0:04:10]} exd4 {[%emt 0:00:12]} 8. Qxd4 {[%emt 0:09:51]} Bb7 {[%emt 0:08:50]} 9. Bg5 {[%emt 0:05:02]} Ne7 {[%emt 0:03:53]} 10. a4 {[%emt 0:13:15]} f6 {[%emt 0:12:17]} 11. Bh4 {[%emt 0:00:27]} Nxb3 {[%emt 0:08:12]} 12. cxb3 {[%emt 0:00:03]} Nc6 {[%emt 0:00:35]} 13. Qe3 {[%emt 0:02:13]} b4 {[%emt 0:00:26]} 14. Nbd2 {[%emt 0:02:06]} Be7 {[%emt 0:00:16]} 15. Rac1 {[%emt 0:13:04]} Qd7 {[%emt 0:03:43]} 16. Rfd1 {[%emt 0:01:50]} O-O {[%emt 0:00:47]} 17. Nd4 {[%emt 0:06:22]} Na5 {[%emt 0:05:28]} 18. Bg3 {[%emt 0:14:04]} Kh8 {[%emt 0:07:30]} 19. Qd3 {[%emt 0:04:51]} Rac8 {[%emt 0:04:53]} 20. Nf5 {[%emt 0:02:19]} Rfe8 {[%emt 0:00:46]} 21. Ne3 {[%emt 0:00:06]} Nc6 {[%emt 0:03:18]} 22. f3 {[%emt 0:03:04]} Red8 {[%emt 0:03:39]} 23. Ndc4 {[%emt 0:01:33]} Qe8 {[%emt 0:01:16]} 24. Nd5 {[%emt 0:00:38]} Bf8 {[%emt 0:01:19]} 25. Qd2 {[%emt 0:01:13]} Ba8 {[%emt 0:00:59]} 26. Nce3 {[%emt 0:00:10]} Qf7 {[%emt 0:02:15]} 27. Bh4 {[%emt 0:07:39]} Ne5 {[%emt 0:02:42]} 28. Bf2 {[%emt 0:01:47]} a5 {[%emt 0:04:31]} 29. Nc4 {[%emt 0:00:24]} Nc6 {[%emt 0:03:35]} 30. Qf4 {[%emt 0:00:53]} Re8 {[%emt 0:00:59]} 31. Nde3 {[%emt 0:00:19]} Bb7 {[%emt 0:00:32]} 32. Qf5 {[%emt 0:00:20]} Ra8 {[%emt 0:00:23]} 33. Qd5 {[%emt 0:00:59]} Qd7 {[%emt 0:00:21]} 34. Rc2 {[%emt 0:00:49]} Nd8 {[%emt 0:02:04]} 35. Qb5 {[%emt 0:01:21]} Bc6 {[%emt 0:01:42]} 36. Qf5 {[%emt 0:00:04]} Qxf5 {[%emt 0:01:59]} 37. Nxf5 {[%emt 0:00:34]} Bd7 {[%emt 0:00:13]} 38. Nfe3 {[%emt 0:00:56]} Nb7 {[%emt 0:01:16]} 39. Nd5 {[%emt 0:00:08]} Rec8 {[%emt 0:00:36]} 40. Nd2 {[%emt 0:01:35]} Nc5 {[%emt 0:00:10]} 41. Bxc5 {[%emt 0:00:07]} dxc5 {[%emt 0:00:04]} 42. Nc4 {[%emt 0:00:03]} Be6 {[%emt 0:00:53]} 43. Rcd2 {[%emt 0:00:09]} Kg8 {[%emt 0:00:39]} 44. g4 {[%emt 0:00:21]} Ra6 {[%emt 0:02:41]} 45. Kf2 {[%emt 0:00:26]} Kf7 {[%emt 0:01:34]} 46. h3 {[%emt 0:01:25]} g5 {[%emt 0:00:37]} 47. e5 {[%emt 0:01:07]} fxe5 {[%emt 0:00:59]} 48. Nxe5+ {[%emt 0:00:08]} Kg7 {[%emt 0:00:08]} 49. Nc4 {[%emt 0:00:16]} Kf7 {[%emt 0:00:58]} 50. f4 {[%emt 0:00:42]} gxf4 {[%emt 0:00:29]} 51. Nxf4 {[%emt 0:00:06]} Bxc4 {[%emt 0:00:13]} 52. bxc4 {[%emt 0:00:42]} Rf6 {[%emt 0:00:07]} 53. Kg3 {[%emt 0:00:40]} Bd6 {[%emt 0:00:20]} 54. Rf1 {[%emt 0:00:38]} Kg8 {[%emt 0:01:57]} 55. g5 {[%emt 0:00:19]} Rf7 {[%emt 0:00:48]} 56. Rdf2 {[%emt 0:00:14]} Re8 {[%emt 0:00:40]} 57. Kg4 {[%emt 0:00:59]} Re4 {[%emt 0:00:12]} 58. b3 {[%emt 0:00:03]} Kg7 {[%emt 0:00:30]} 59. Rf3 {[%emt 0:00:28]} h5+ {[%emt 0:00:23]} 60. Kg3 {[%emt 0:00:06]} h4+ {[%emt 0:00:30]} 61. Kg4 {[%emt 0:00:08]} Rf8 {[%emt 0:00:48]} 62. R3f2 {[%emt 0:01:38]} 1/2-1/2

[Event "Hunan Belt and Road Open 2019"]
[Site "Hunan"]
[Date "2019.08.03"]
[Round "6.27"]
[White "Radovanovic, Mihajlo"]
[Black "Fang, Yan"]
[Result "1/2-1/2"]
[ECO "D60"]
[WhiteElo "2500"]
[BlackElo "2424"]
[Annotator "ChessBase"]
[PlyCount "76"]
[EventDate "2019.07.29"]
[EventType "swiss"]
[EventCountry "CHN"]
[SourceTitle "playchess.com"]
[Source "ChessBase"]
[SourceQuality "1"]
[TimeControl "5400+30"]

1. Nf3 {[%emt 0:00:00]} Nf6 {[%emt 0:00:15]} 2. c4 {[%emt 0:00:00]} e6 {[%emt 0:00:15]} 3. Nc3 {[%emt 0:00:01]} d5 {[%emt 0:01:24]} 4. d4 {[%emt 0:00:08]} Be7 {[%emt 0:00:06]} 5. Bg5 {[%emt 0:01:42]} O-O {[%emt 0:00:07]} 6. e3 {[%emt 0:00:11]} Nbd7 {[%emt 0:00:40]} 7. Bd3 {[%emt 0:02:54]} dxc4 {[%emt 0:02:26]} 8. Bxc4 {[%emt 0:00:07]} a6 {[%emt 0:05:00]} 9. Bd3 {[%emt 0:10:04]} c5 {[%emt 0:13:01]} 10. O-O {[%emt 0:02:22]} b5 {[%emt 0:02:09]} 11. Qe2 {[%emt 0:04:48]} Bb7 {[%emt 0:03:04]} 12. Rad1 {[%emt 0:01:37]} Nd5 {[%emt 0:19:27]} 13. Bxe7 {[%emt 0:09:11]} Qxe7 {[%emt 0:00:10]} 14. Nxd5 {[%emt 0:01:29]} Bxd5 {[%emt 0:00:10]} 15. Bb1 {[%emt 0:00:18]} Rac8 {[%emt 0:01:46]} 16. Rfe1 {[%emt 0:01:00]} g6 {[%emt 0:13:25]} 17. e4 {[%emt 0:01:43]} Bb7 {[%emt 0:00:46]} 18. Qd2 {[%emt 0:09:28]} cxd4 {[%emt 0:00:23]} 19. Qxd4 {[%emt 0:00:04]} Nc5 {[%emt 0:03:38]} 20. Qb4 {[%emt 0:04:05]} Rc7 {[%emt 0:04:15]} 21. Ne5 {[%emt 0:11:07]} Na4 {[%emt 0:06:36]} 22. Qd2 {[%emt 0:02:41]} Nb6 {[%emt 0:06:00]} 23. b3 {[%emt 0:07:10]} f6 {[%emt 0:10:08]} 24. Qd6 {[%emt 0:00:13]} Qxd6 {[%emt 0:01:22]} 25. Rxd6 {[%emt 0:00:04]} fxe5 {[%emt 0:01:27]} 26. Rxb6 {[%emt 0:00:05]} Kf7 {[%emt 0:01:55]} 27. Kf1 {[%emt 0:02:50]} Rd8 {[%emt 0:01:41]} 28. Ke2 {[%emt 0:00:06]} Ke7 {[%emt 0:00:16]} 29. Rd1 {[%emt 0:01:50]} Rxd1 30. Kxd1 {[%emt 0:00:01]} Bc8 {[%emt 0:01:31]} 31. a4 {[%emt 0:06:20]} bxa4 {[%emt 0:01:00]} 32. bxa4 {[%emt 0:00:01]} Rb7 {[%emt 0:00:08]} 33. Rxb7+ Bxb7 {[%emt 0:00:01]} 34. Bd3 {[%emt 0:05:24]} a5 {[%emt 0:00:58]} 35. f3 {[%emt 0:02:31]} Bc6 {[%emt 0:00:46]} 36. Bc2 {[%emt 0:00:07]} Kd6 {[%emt 0:00:03]} 37. Kd2 {[%emt 0:00:06]} Kc5 {[%emt 0:00:03]} 38. Kc3 {[%emt 0:00:04]} g5 {[%emt 0:00:16]} 1/2-1/2

[Event "Hunan Belt and Road Open 2019"]
[Site "Hunan"]
[Date "2019.08.03"]
[Round "6.28"]
[White "Lou, Yiping"]
[Black "Xu, Minghui"]
[Result "1/2-1/2"]
[ECO "D27"]
[WhiteElo "2489"]
[BlackElo "2401"]
[Annotator "ChessBase"]
[PlyCount "63"]
[EventDate "2019.07.29"]
[EventType "swiss"]
[EventCountry "CHN"]
[SourceTitle "playchess.com"]
[Source "ChessBase"]
[SourceQuality "1"]
[TimeControl "5400+30"]

1. d4 {[%emt 0:00:41]} d5 {[%emt 0:00:00]} 2. c4 {[%emt 0:00:07]} e6 {[%emt 0:00:20]} 3. Nc3 {[%emt 0:00:12]} a6 {[%emt 0:00:27]} 4. e3 {[%emt 0:01:37]} Nf6 {[%emt 0:01:35]} 5. Nf3 {[%emt 0:00:11]} dxc4 {[%emt 0:02:11]} 6. Bxc4 {[%emt 0:01:25]} b5 {[%emt 0:00:39]} 7. Be2 {[%emt 0:00:35]} Bb7 {[%emt 0:03:06]} 8. O-O {[%emt 0:01:51]} c5 {[%emt 0:00:07]} 9. dxc5 {[%emt 0:00:19]} Qxd1 {[%emt 0:03:05]} 10. Rxd1 {[%emt 0:00:04]} Bxc5 {[%emt 0:00:25]} 11. Nd2 {[%emt 0:00:08]} Nc6 {[%emt 0:02:08]} 12. Nde4 {[%emt 0:08:33]} Nxe4 {[%emt 0:02:20]} 13. Nxe4 {[%emt 0:01:02]} Be7 {[%emt 0:00:03]} 14. Nd6+ {[%emt 0:00:41]} Bxd6 {[%emt 0:00:07]} 15. Rxd6 {[%emt 0:00:03]} Ke7 {[%emt 0:03:54]} 16. Rd1 {[%emt 0:00:30]} Rhd8 {[%emt 0:00:41]} 17. Bd2 {[%emt 0:02:08]} Rd7 {[%emt 0:03:30]} 18. Kf1 {[%emt 0:05:20]} Rad8 {[%emt 0:02:31]} 19. Bc3 {[%emt 0:05:13]} Rxd1+ {[%emt 0:01:34]} 20. Bxd1 {[%emt 0:00:07]} f6 {[%emt 0:03:27]} 21. Bf3 {[%emt 0:03:07]} Rb8 {[%emt 0:09:03]} 22. Rc1 {[%emt 0:03:55]} Kd7 {[%emt 0:08:45]} 23. Be4 {[%emt 0:05:16]} b4 {[%emt 0:09:55]} 24. Bd2 {[%emt 0:02:25]} Ne5 {[%emt 0:01:04]} 25. Bb1 {[%emt 0:07:10]} Bc6 {[%emt 0:04:47]} 26. Rd1 {[%emt 0:05:16]} Kc7 {[%emt 0:02:36]} 27. Rc1 {[%emt 0:09:51]} Kd7 {[%emt 0:00:31]} 28. Be1 {[%emt 0:00:47]} h6 {[%emt 0:04:41]} 29. Kg1 {[%emt 0:03:53]} a5 {[%emt 0:02:52]} 30. f3 {[%emt 0:02:09]} Bb5 {[%emt 0:04:53]} 31. Bg3 {[%emt 0:03:56]} Rc8 {[%emt 0:00:28]} 32. Rxc8 {[%emt 0:04:10]} 1/2-1/2